bitfinex-derivatives/quotes_SOLF0:USTF0_20241002
["timestamp","ask_amount","ask_price","bid_price","bid_amount"]
[1727831378110,2.7561,145.16,145.13,0.12502]
[1727831378411,14.88,145.15,145.07,0.12502]
[1727831379311,2.7566,145.13,145.09,2.7572]
[1727831379507,3.47505805,145.15,145.09,2.7572]
[1727831379711,2.7542,145.18,145.07,0.12502]
[1727831379712,23.85,145.13,145.07,0.12502]
[1727831380212,23.85,145.1,145.07,0.12502]
[1727831380414,2.7574,145.09,145.07,0.12502]
[1727831380814,23.85,145.1,145.07,0.12502]
[1727831381012,2.7575,145.08,145.07,0.12502]
[1727831381218,2.7575,145.08,144.99,1.3626]
[1727831381219,1.2908,145.09,144.99,1.3626]
[1727831381914,6.21161356,145.08,145.03,2.7582]
[1727831382412,4.0481,145.09,145.04,2.7581]
[1727831382817,7.53117598,145.09,145.04,2.7581]
[1727831384710,2.7579,145.06,145.02,2.7586]
[1727831385124,2.7579,145.06,144.96,2.6508]
[1727831385722,2.7579,145.06,144.96,6.08767402]
[1727831386016,2.7579,145.06,145.01,2.88372]
[1727831387316,2.7577,145.07,145.03,2.7584]
[1727831388424,2.6067,145.08,145.03,2.7584]
[1727831388618,2.6067,145.08,145.01,0.12502]
[1727831388812,74.50502,145.13,145.03,23.85]
[1727831389016,0.12502,145.13,145.06,2.7578]
[1727831389415,23.97502,145.13,145.06,2.7578]
[1727831389820,2.7572,145.1,145.06,2.7578]
[1727831390019,3.37792396,145.09,145.06,2.7578]
[1727831390528,3.44353192,145.09,145.06,2.7578]
[1727831390827,1.2919,145.12,145.01,0.12502]
[1727831391025,2.7571,145.11,145.06,2.7577]
[1727831391215,3.52214664,145.1,145.06,2.7577]
[1727831391619,1.2919,145.12,145.08,2.7574]
[1727831391826,1.2919,145.12,145.03,23.85]
[1727831392126,0.12502,145.13,145.05,23.85]
[1727831392329,0.12502,145.13,145.05,27.26663741]
[1727831394025,0.12502,145.13,145.05,3.41663741]
[1727831394228,0.12502,145.13,145.04,1.3057]
[1727831394821,2.88162,145.13,145.09,2.7572]
[1727831395028,0.12502,145.13,145.04,1.3057]
[1727831396219,0.12502,145.13,145.1,2.757]
[1727831396417,0.12502,145.13,145.05,23.85]
[1727831397021,0.12502,145.13,145.11,2.7569]
[1727831398928,0.12502,145.13,145.04,1.3057]
[1727831399731,2.88162,145.13,145.09,2.7571]
[1727831400436,0.12502,145.13,145.05,23.85]
[1727831400631,0.12502,145.13,145.04,4.80860612]
[1727831400632,0.12502,145.13,145.04,1.3057]
[1727831400936,2.7573,145.09,145.06,2.7577]
[1727831401139,2.7573,145.09,145.02,2.6052]
[1727831401336,3.45809429,145.09,145.02,2.6052]
[1727831401537,23.85,145.1,145.05,2.758]
[1727831401738,23.85,145.1,145.01,0.12502]
[1727831401936,2.7582,145.05,145.01,2.88372]
[1727831402338,3.52083085,145.07,145.01,0.12502]
[1727831402537,1.2846,145.08,145.01,0.12502]
[1727831402739,2.5552,145.09,145.01,0.12502]
[1727831402948,23.85,145.12,145.01,0.12502]
[1727831403146,2.88162,145.13,145.02,23.85]
[1727831403343,0.12502,145.13,145.05,23.85]
[1727831404345,0.12502,145.13,145.05,25.1918]
[1727831404552,0.12502,145.13,145.05,28.63199231]
[1727831404755,2.88152,145.13,145.09,2.7571]
[1727831405052,0.12502,145.13,145.05,28.63199231]
[1727831405244,0.12502,145.13,145.11,2.7569]
[1727831405444,0.12502,145.13,145.05,28.63199231]
[1727831405655,0.12502,145.13,145.05,25.1918]
[1727831405841,2.7567,145.12,145.07,2.7576]
[1727831406046,0.12502,145.13,145.05,1.3418]
[1727831406242,0.12502,145.13,145.04,1.4032]
[1727831406651,2.7574,145.09,145.04,1.4032]
[1727831406948,23.85,145.12,145.04,1.4032]
[1727831408046,2.7572,145.1,145.06,2.7577]
[1727831408256,0.12502,145.13,145.05,23.85]
[1727831408650,0.12502,145.13,145.1,2.7569]
[1727831409249,0.12502,145.13,145.12,2.7567]
[1727831411154,0.12502,145.13,145.07,23.85]
[1727831413353,0.12502,145.13,145.08,2.7573]
[1727831413553,2.88152,145.13,145.07,23.85]
[1727831414258,0.12502,145.13,145.1,2.757]
[1727831414456,0.12502,145.13,145.07,23.85]
[1727831415259,0.12502,145.13,145.11,2.7568]
[1727831416555,0.12502,145.13,145.07,23.85]
[1727831416760,0.12502,145.13,145.12,2.7567]
[1727831419260,0.12502,145.19,145.17,2.7557]
[1727831419564,0.12502,145.19,145.12,23.85]
[1727831419766,0.12502,145.19,145.13,1.3131]
[1727831420357,0.12502,145.19,145.16,2.7558]
[1727831421159,2.7558,145.17,145.14,2.7562]
[1727831421569,23.97502,145.19,145.08,25.1631]
[1727831421765,23.97502,145.19,145.1,2.757]
[1727831421766,2.756,145.16,145.1,2.757]
[1727831422066,23.97502,145.19,145.08,25.1631]
[1727831422261,2.756,145.16,145.13,2.7564]
[1727831422458,23.97502,145.19,145.08,25.1631]
[1727831422658,0.12502,145.19,145.08,25.1631]
[1727831423058,2.7556,145.18,145.15,2.7561]
[1727831423263,0.12502,145.19,145.1,23.85]
[1727831423471,0.12502,145.19,145.12,23.85]
[1727831423963,0.12502,145.19,145.13,1.3767]
[1727831424358,0.12502,145.19,145.17,2.7557]
[1727831425161,0.12502,145.19,145.18,2.7556]
[1727831426264,2.7545,145.24,145.16,1.3326]
[1727831426458,2.7545,145.24,145.2,2.7551]
[1727831427476,2.7545,145.24,145.21,2.7549]
[1727831427771,2.7545,145.24,145.16,1.3326]
[1727831428069,74.56502,145.25,145.16,1.3326]
[1727831428271,2.7546,145.23,145.2,2.7551]
[1727831429871,74.56502,145.25,145.16,1.3326]
[1727831430269,0.12502,145.25,145.16,1.3326]
[1727831430467,0.12502,145.25,145.23,2.7545]
[1727831430663,0.12502,145.25,145.17,23.85]
[1727831431472,0.12502,145.25,145.19,23.85]
[1727831431675,0.12502,145.25,145.2,1.4023]
[1727831432168,2.87942,145.25,145.2,1.4023]
[1727831432564,0.12502,145.25,145.2,1.4023]
[1727831432962,0.12502,145.25,145.22,2.7547]
[1727831434176,0.12502,145.25,145.2,1.4023]
[1727831434375,0.12502,145.25,145.23,2.7545]
[1727831436284,0.12502,145.25,145.21,2.7549]
[1727831436469,0.12502,145.25,145.2,1.4023]
[1727831437578,0.12502,145.25,145.21,14.87]
[1727831437969,0.12502,145.25,145.22,2.7548]
[1727831438169,0.12502,145.25,145.21,14.87]
[1727831438373,0.12502,145.25,145.22,14.87]
[1727831438669,0.12502,145.25,145.24,2.7544]
[1727831439075,0.12502,145.25,145.23,2.7545]
[1727831439276,0.12502,145.25,145.21,16.1667]
[1727831439778,0.12502,145.25,145.24,2.7544]
[1727831440483,0.12502,145.25,145.24,17.6244]
[1727831440874,2.87822,145.31,145.27,2.7537]
[1727831441280,0.12502,145.31,145.24,14.87]
[1727831441473,2.7537,145.28,145.22,16.2732]
[1727831441877,14.87,145.3,145.22,16.2732]
[1727831442282,2.7538,145.28,145.25,2.7541]
[1727831442577,14.87,145.3,145.22,16.2732]
[1727831443791,0.12502,145.31,145.24,14.87]
[1727831444484,2.7533,145.3,145.27,2.7537]
[1727831444889,2.7533,145.3,145.24,14.87]
[1727831445180,14.99502,145.31,145.22,1.4032]
[1727831445376,14.87,145.29,145.21,1.2967]
[1727831445575,2.7542,145.26,145.23,2.7545]
[1727831446380,2.7542,145.26,145.22,2.7547]
[1727831446778,2.7542,145.26,145.2,16.2723]
[1727831447181,1.3381,145.28,145.23,2.7545]
[1727831447483,1.3925,145.3,145.22,14.87]
[1727831447681,1.3925,145.3,145.24,2.7543]
[1727831447880,2.754,145.27,145.24,2.7543]
[1727831448284,2.754,145.27,145.23,2.7545]
[1727831449493,2.754,145.27,145.24,2.7544]
[1727831450979,2.754,145.27,145.23,2.7545]
[1727831451188,2.754,145.27,145.22,14.87]
[1727831452490,2.754,145.27,145.24,2.7543]
[1727831453690,2.7539,145.27,145.24,2.7543]
[1727831453994,1.3925,145.3,145.24,14.87]
[1727831454385,2.7536,145.29,145.26,2.7539]
[1727831454894,1.3925,145.3,145.26,2.7539]
[1727831455085,2.7536,145.29,145.26,2.7539]
[1727831455586,1.3925,145.3,145.24,14.87]
[1727831455797,2.7538,145.28,145.25,2.7541]
[1727831457490,1.3925,145.3,145.22,14.87]
[1727831457687,2.754,145.27,145.24,2.7543]
[1727831458585,1.3925,145.3,145.22,14.87]
[1727831458799,1.3925,145.3,145.23,14.87]
[1727831458800,2.7534,145.3,145.23,14.87]
[1727831459190,2.7534,145.3,145.25,2.7542]
[1727831459391,2.7534,145.3,145.2,19.74472597]
[1727831459392,0.12502,145.31,145.26,14.87]
[1727831459896,0.12502,145.31,145.29,2.7535]
[1727831460395,0.12502,145.31,145.26,14.87]
[1727831460784,2.7534,145.3,145.26,14.87]
[1727831461897,0.12502,145.31,145.26,14.87]
[1727831462086,2.87822,145.31,145.26,14.87]
[1727831462590,2.7533,145.3,145.26,14.87]
[1727831462991,14.99502,145.31,145.25,2.7541]
[1727831463192,2.754,145.27,145.22,14.87]
[1727831463493,14.99502,145.31,145.22,14.87]
[1727831464399,0.12502,145.31,145.25,14.87]
[1727831464803,2.7535,145.29,145.25,14.87]
[1727831465105,0.12502,145.31,145.25,14.87]
[1727831465898,2.7535,145.3,145.27,2.7539]
[1727831466096,14.99502,145.31,145.23,14.87]
[1727831466395,14.99502,145.31,145.21,14.87]
[1727831466697,2.754,145.27,145.24,2.7544]
[1727831467394,1.3356,145.3,145.21,14.87]
[1727831467592,2.7538,145.28,145.25,2.7542]
[1727831468995,14.99502,145.31,145.28,2.7536]
[1727831468996,2.87822,145.31,145.28,2.7536]
[1727831469300,0.12502,145.31,145.25,14.87]
[1727831469690,2.7535,145.29,145.26,2.7539]
[1727831469901,0.12502,145.31,145.25,14.87]
[1727831470494,2.7533,145.3,145.27,2.7538]
[1727831470795,2.7533,145.3,145.25,14.87]
[1727831471702,0.12502,145.31,145.25,14.87]
[1727831472400,0.12502,145.31,145.28,2.7536]
[1727831472595,0.12502,145.31,145.23,14.87]
[1727831472900,2.7539,145.27,145.25,2.7541]
[1727831473395,2.7539,145.27,145.23,14.87]
[1727831473396,0.12502,145.31,145.23,14.87]
[1727831474000,2.7535,145.29,145.26,2.7539]
[1727831475002,2.7534,145.3,145.27,2.7537]
[1727831475608,0.12502,145.31,145.23,14.87]
[1727831475915,2.7536,145.29,145.26,2.7539]
[1727831476402,0.12502,145.31,145.23,14.87]
[1727831476608,2.754,145.27,145.24,2.7544]
[1727831476798,2.754,145.27,145.21,14.87]
[1727831477316,2.7538,145.28,145.21,14.87]
[1727831477902,2.7538,145.28,145.26,2.754]
[1727831479309,4.0699,145.3,145.27,2.7537]
[1727831482500,4.0698,145.3,145.25,2.7542]
[1727831482707,1.3165,145.3,145.23,14.87]
[1727831483408,2.7537,145.28,145.25,2.7541]
[1727831484717,2.7537,145.28,145.26,2.754]
[1727831484902,2.7535,145.29,145.26,2.754]
[1727831485101,0.12502,145.31,145.23,14.87]
[1727831485312,0.12502,145.31,145.25,14.87]
[1727831485609,2.7534,145.3,145.25,14.87]
[1727831486217,2.7534,145.3,145.27,2.7537]
[1727831486714,0.12502,145.31,145.23,14.87]
[1727831486909,2.7537,145.28,145.25,2.7542]
[1727831487214,2.7537,145.28,145.21,14.87]
[1727831488014,2.7537,145.28,145.23,2.7546]
[1727831488313,2.7536,145.29,145.21,14.87]
[1727831489118,2.7536,145.29,145.26,2.754]
[1727831493624,9.52,145.29,145.26,2.754]
[1727831493821,2.7537,145.28,145.26,2.754]
[1727831500726,0.12502,145.31,145.25,9.52]
[1727831501023,2.87822,145.31,145.27,9.52]
[1727831501225,12.39822,145.31,145.27,9.52]
[1727831501625,9.52,145.3,145.2,6.1178926]
[1727831501824,9.52,145.26,145.2,6.1178926]
[1727831502028,9.52,145.26,145.21,9.52]
[1727831502522,9.52,145.24,145.2,2.714]
[1727831502721,9.52,145.23,145.19,58.31841673]
[1727831503128,1.3632,145.3,145.2,9.52]
[1727831503429,9.52,145.25,145.2,9.52]
[1727831503926,12.2743,145.25,145.22,2.7546]
[1727831510724,12.2745,145.24,145.21,2.7549]
[1727831512930,2.7552,145.2,145.19,0.12502]
[1727831513129,12.2752,145.2,145.19,0.12502]
[1727831513442,2.7559,145.17,145.11,13.5038]
[1727831513734,9.52,145.16,145.11,13.5038]
[1727831513935,9.52,145.16,145.14,2.7562]
[1727831515440,9.52,145.16,145.13,2.88142]
[1727831515643,2.7559,145.17,145.13,2.88142]
[1727831516235,14.9,145.18,145.13,2.88142]
[1727831516444,2.7561,145.16,145.13,2.88142]
[1727831516942,14.9,145.18,145.13,2.88142]
[1727831517239,2.7558,145.17,145.14,2.7563]
[1727831517542,14.9,145.18,145.13,0.12502]
[1727831518040,14.9,145.23,145.14,14.9]
[1727831518245,14.9,145.21,145.13,0.12502]
[1727831518739,14.9,145.21,145.15,2.756]
[1727831519135,14.9,145.19,145.15,2.756]
[1727831519334,2.7557,145.18,145.14,2.7562]
[1727831520143,2.7557,145.18,145.15,2.7561]
[1727831521047,2.7558,145.17,145.14,2.7562]
[1727831521235,14.9,145.19,145.13,0.12502]
[1727831522149,2.7559,145.17,145.13,2.88152]
[1727831522354,14.9,145.16,145.13,0.12502]
[1727831522544,17.5603,145.16,145.13,0.12502]
[1727831522740,14.9,145.14,145.08,2.7574]
[1727831522948,3.49714976,145.13,145.08,2.7574]
[1727831523454,2.7568,145.12,145.08,2.7574]
[1727831524855,2.7566,145.13,145.07,0.12502]
[1727831525046,17.5603,145.16,145.07,0.12502]
[1727831525246,21.07433921,145.16,145.07,0.12502]
[1727831525447,2.7564,145.14,145.1,2.7569]
[1727831525751,21.07433921,145.16,145.07,15.02502]
[1727831525954,2.7562,145.15,145.09,2.7571]
[1727831526145,21.07433921,145.16,145.07,15.02502]
[1727831526751,14.9,145.14,145.07,0.12502]
[1727831527359,2.7568,145.12,145.09,2.7571]
[1727831527850,14.9,145.14,145.07,0.12502]
[1727831528055,2.6603,145.16,145.07,0.12502]
[1727831528653,2.7566,145.13,145.07,0.12502]
[1727831529751,2.7566,145.13,145.09,2.7571]
[1727831531758,2.7566,145.13,145.1,2.7571]
[1727831532758,4.111,145.18,145.1,14.9]
[1727831532954,1.3553,145.18,145.12,14.9]
[1727831533161,0.12502,145.19,145.14,14.9]
[1727831533351,0.12502,145.19,145.18,2.7556]
[1727831533952,0.12502,145.19,145.13,3.43993317]
[1727831534153,0.12502,145.19,145.16,2.7558]
[1727831534653,0.12502,145.19,145.15,2.7561]
[1727831534957,0.12502,145.19,145.1,14.9]
[1727831535161,0.12502,145.19,145.14,2.7562]
[1727831535360,0.12502,145.19,145.12,14.9]
[1727831535656,0.12502,145.19,145.18,2.7556]
[1727831536052,0.12502,145.19,145.14,14.9]
[1727831536254,0.12502,145.19,145.18,2.7556]
[1727831540064,0.12502,145.19,145.18,17.6556]
[1727831543158,0.12502,145.19,145.18,2.7556]
[1727831545664,0.12502,145.19,145.18,12.2756]
[1727831545864,74.4,145.32,145.18,9.52]
[1727831546065,74.4,145.32,145.15,1.339]
[1727831546066,9.52,145.25,145.2,9.52]
[1727831546371,2.7545,145.24,145.21,12.275]
[1727831546568,2.7545,145.24,145.21,2.755]
[1727831548869,2.62948,145.24,145.21,2.755]
[1727831550373,9.52,145.25,145.2,2.7551]
[1727831550573,9.52,145.25,145.2,12.2751]
[1727831551772,2.7547,145.23,145.2,12.2751]
[1727831553276,3.38441334,145.26,145.21,9.52]
[1727831553467,9.52,145.27,145.22,9.52]
[1727831553775,4.0346,145.3,145.23,9.52]
[1727831553972,2.7539,145.27,145.24,2.7543]
[1727831554585,9.52,145.26,145.22,9.52]
[1727831555078,2.7544,145.25,145.22,12.2747]
[1727831556878,4.0346,145.3,145.22,9.52]
[1727831557073,4.0346,145.3,145.19,0.12502]
[1727831557074,2.7539,145.27,145.24,9.52]
[1727831557268,9.52,145.29,145.24,9.52]
[1727831557575,2.7537,145.28,145.25,2.7541]
[1727831558074,2.7537,145.28,145.25,9.52]
[1727831558279,2.7535,145.29,145.26,2.754]
[1727831559074,2.7537,145.28,145.26,2.754]
[1727831559887,2.7541,145.26,145.21,16.2672]
[1727831560782,4.0346,145.3,145.21,16.2672]
[1727831560981,4.0346,145.3,145.23,14.87]
[1727831561281,2.7536,145.29,145.26,2.7539]
[1727831562579,2.7537,145.28,145.26,2.7539]
[1727831565579,17.522,145.3,145.21,16.2672]
[1727831565779,17.522,145.3,145.25,2.7542]
[1727831566681,2.7538,145.28,145.25,2.7542]
[1727831568984,2.7538,145.28,145.21,16.2672]
[1727831569183,2.7538,145.28,145.26,2.754]
[1727831570677,2.7538,145.28,145.23,14.87]
[1727831570878,2.7538,145.28,145.25,2.7541]
[1727831572677,2.7538,145.28,145.26,2.754]
[1727831572878,2.7538,145.28,145.21,1.3972]
[1727831572879,0.12502,145.31,145.25,14.87]
[1727831573085,0.12502,145.31,145.27,14.87]
[1727831573280,0.12502,145.31,145.28,2.7536]
[1727831573888,2.87812,145.31,145.29,2.7534]
[1727831574189,0.12502,145.31,145.29,2.7534]
[1727831576197,0.12502,145.31,145.28,14.87]
[1727831576491,0.12502,145.31,145.3,2.7533]
[1727831577387,0.12502,145.31,145.3,17.6233]
[1727831578389,0.12502,145.37,145.3,14.87]
[1727831578591,0.12502,145.37,145.33,14.87]
[1727831579489,0.12502,145.37,145.36,2.7522]
[1727831580894,0.12502,145.37,145.33,14.87]
[1727831581088,0.12502,145.37,145.32,14.87]
[1727831581293,0.12502,145.37,145.3,14.87]
[1727831581984,2.7523,145.36,145.32,2.7529]
[1727831582391,2.7523,145.36,145.3,14.87]
[1727831582987,2.87712,145.37,145.34,2.7525]
[1727831583193,0.12502,145.37,145.33,14.87]
[1727831583581,0.12502,145.37,145.35,2.7522]
[1727831583786,0.12502,145.37,145.33,14.87]
[1727831585296,0.12502,145.37,145.35,2.7522]
[1727831585593,0.12502,145.37,145.33,14.87]
[1727831586293,0.12502,145.37,145.35,2.7522]
[1727831586495,0.12502,145.37,145.33,14.87]
[1727831587201,0.12502,145.37,145.35,2.7522]
[1727831587495,0.12502,145.37,145.33,14.87]
[1727831587903,0.12502,145.37,145.35,14.87]
[1727831588093,0.12502,145.37,145.36,2.7522]
[1727831591504,0.12502,145.37,145.36,12.2622]
[1727831597916,0.12502,145.37,145.35,2.7522]
[1727831598102,0.12502,145.37,145.35,12.2622]
[1727831599406,0.12502,145.37,145.36,9.51]
[1727831599607,0.12502,145.37,145.36,12.2622]
[1727831609923,0.12502,145.37,145.35,2.7523]
[1727831610134,0.12502,145.37,145.29,2.581]
[1727831610421,0.12502,145.37,145.33,9.51]
[1727831610422,2.7524,145.35,145.33,9.51]
[1727831610621,9.63502,145.37,145.31,9.51]
[1727831611019,9.63502,145.37,145.29,2.581]
[1727831611020,2.7524,145.35,145.32,12.2627]
[1727831611324,0.12502,145.37,145.34,9.51]
[1727831611731,2.87712,145.37,145.34,12.2624]
[1727831612823,2.87712,145.37,145.35,9.51]
[1727831613025,0.12502,145.37,145.35,12.2623]
[1727831613228,0.12502,145.37,145.36,9.51]
[1727831613826,0.12502,145.37,145.36,12.2622]
[1727831615524,0.12502,145.37,145.32,3.48531601]
[1727831615831,0.12502,145.37,145.36,9.51]
[1727831617129,0.12502,145.37,145.36,12.2622]
[1727831626334,0.12502,145.37,145.36,2.7522]
[1727831626533,0.12502,145.37,145.36,12.2622]
[1727831630243,0.12502,145.37,145.36,2.7522]
[1727831630443,0.12502,145.37,145.3,1.2983]
[1727831630743,9.63502,145.37,145.32,9.51]
[1727831630938,2.7523,145.36,145.32,9.51]
[1727831631138,2.7523,145.36,145.33,2.7526]
[1727831631643,2.7523,145.36,145.34,9.51]
[1727831631840,0.12502,145.37,145.35,2.7522]
[1727831632049,0.12502,145.37,145.35,9.51]
[1727831632442,0.12502,145.37,145.36,2.7522]
[1727831633147,0.12502,145.37,145.35,12.2623]
[1727831633355,0.12502,145.37,145.35,2.7523]
[1727831634048,183.29457285,145.68,145.36,104.52]
[1727831634257,9.51,145.59,145.38,27.6]
[1727831634445,7.45591725,145.6,145.54,9.51]
[1727831634746,4.0898,145.6,145.54,12.2587]
[1727831635141,0.12502,145.61,145.54,9.51]
[1727831635347,0.12502,145.61,145.6,9.51]
[1727831635742,0.12502,145.61,145.52,3.48586871]
[1727831635940,0.12502,145.61,145.59,9.51]
[1727831637548,0.12502,145.61,145.58,17.5878]
[1727831638141,0.12502,145.61,145.59,2.7477]
[1727831642245,0.12502,145.61,145.59,17.5877]
[1727831644551,0.12502,145.61,145.6,2.7476]
[1727831647251,1.02040816,145.65,145.59,14.84]
[1727831647447,1.02040816,145.65,145.63,14.84]
[1727831648955,1.02040816,145.65,145.63,17.5869]
[1727831649854,1.02040816,145.65,145.64,2.7469]
[1727831654755,1.02040816,145.65,145.63,17.587]
[1727831654960,1.02040816,145.65,145.56,1.2909]
[1727831654961,1.02040816,145.65,145.61,14.84]
[1727831655154,1.02040816,145.65,145.56,1.2909]
[1727831655348,1.02040816,145.65,145.62,2.7471]
[1727831655566,1.02040816,145.65,145.61,14.84]
[1727831656062,1.02040816,145.65,145.63,2.7469]
[1727831656261,1.02040816,145.65,145.61,14.84]
[1727831656665,1.02040816,145.65,145.63,14.84]
[1727831657253,1.02040816,145.65,145.64,2.7469]
[1727831658360,1.02040816,145.65,145.64,17.5869]
[1727831659664,1.02040816,145.65,145.64,12.2369]
[1727831662155,0.12502,145.67,145.64,9.49]
[1727831662455,9.61502,145.73,145.67,2.7461]
[1727831662661,9.61502,145.73,145.69,9.49]
[1727831663465,0.12502,145.73,145.69,9.49]
[1727831663761,4.50081295,145.72,145.69,9.49]
[1727831664159,7.24631295,145.72,145.69,12.2358]
[1727831664961,7.24631295,145.72,145.69,2.7458]
[1727831665163,7.24631295,145.72,145.69,12.2358]
[1727831665867,9.49,145.71,145.61,0.12502]
[1727831666061,9.49,145.71,145.66,9.49]
[1727831666462,9.49,145.71,145.68,9.49]
[1727831666662,4.50081295,145.72,145.68,9.49]
[1727831666868,2.7457,145.71,145.68,9.49]
[1727831667069,4.50081295,145.72,145.67,2.7462]
[1727831667256,4.50081295,145.72,145.68,9.49]
[1727831667460,2.7458,145.7,145.68,9.49]
[1727831667659,4.50081295,145.72,145.61,0.12502]
[1727831667863,9.49,145.7,145.61,0.12502]
[1727831668069,9.49,145.7,145.64,9.49]
[1727831668376,9.49,145.7,145.65,9.49]
[1727831668773,2.7463,145.68,145.65,12.2366]
[1727831669276,2.7463,145.68,145.65,2.7466]
[1727831669475,2.7463,145.68,145.65,12.2366]
[1727831671367,9.49,145.7,145.61,0.12502]
[1727831671574,2.7464,145.67,145.64,9.49]
[1727831671777,9.49,145.7,145.66,9.49]
[1727831671969,2.7461,145.69,145.66,9.49]
[1727831672570,2.7461,145.69,145.66,12.2364]
[1727831673270,2.7461,145.69,145.67,9.49]
[1727831673472,4.50081295,145.72,145.68,9.49]
[1727831673870,13.99081295,145.72,145.67,12.2361]
[1727831674471,13.99081295,145.72,145.67,9.49]
[1727831675278,12.2359,145.7,145.66,2.7463]
[1727831675777,2.7459,145.69,145.66,2.7463]
[1727831677479,9.49,145.7,145.61,0.12502]
[1727831677679,2.7462,145.68,145.65,2.7466]
[1727831678572,9.49,145.7,145.65,9.49]
[1727831678778,9.49,145.7,145.66,2.7465]
[1727831678968,9.49,145.7,145.65,9.49]
[1727831679572,2.7462,145.68,145.65,12.2366]
[1727831680188,2.7462,145.68,145.66,2.7464]
[1727831681876,9.49,145.7,145.66,2.7464]
[1727831681877,2.746,145.69,145.66,2.7464]
[1727831682079,2.746,145.69,145.66,12.2364]
[1727831684281,9.49,145.71,145.67,9.49]
[1727831684282,2.7456,145.71,145.67,9.49]
[1727831684582,2.7456,145.71,145.68,9.49]
[1727831684769,2.7458,145.7,145.67,12.2362]
[1727831685176,2.7458,145.7,145.67,9.49]
[1727831686374,13.99081295,145.72,145.67,9.49]
[1727831686677,2.7459,145.7,145.67,9.49]
[1727831686983,2.7459,145.7,145.67,12.2363]
[1727831687187,2.7459,145.7,145.68,9.49]
[1727831688285,2.7459,145.7,145.68,12.2361]
[1727831688482,4.50081295,145.72,145.68,12.2361]
[1727831688691,2.7456,145.71,145.68,12.2361]
[1727831690192,4.50081295,145.72,145.7,2.7456]
[1727831690387,4.50081295,145.72,145.69,9.49]
[1727831691477,7.24621295,145.72,145.69,2.7458]
[1727831692893,7.24621295,145.72,145.69,12.2358]
[1727831693784,1.02040816,145.72,145.69,9.49]
[1727831693982,1.02040816,145.72,145.7,2.7456]
[1727831694178,1.02040816,145.72,145.7,9.49]
[1727831695293,1.02040816,145.72,145.71,2.7455]
[1727831700490,1.02040816,145.72,145.69,12.2359]
[1727831701595,1.02040816,145.72,145.69,9.49]
[1727831701798,1.02040816,145.72,145.7,12.2356]
[1727831702392,9.49,145.71,145.63,1.3075]
[1727831702687,12.2361,145.68,145.65,2.7466]
[1727831704494,9.49,145.68,145.62,1.3659]
[1727831704695,9.49,145.66,145.61,0.12502]
[1727831704897,12.2372,145.63,145.61,0.12502]
[1727831705203,9.49,145.62,145.61,0.12502]
[1727831705594,3.44479758,145.62,145.61,0.12502]
[1727831705796,1.2659,145.65,145.61,0.12502]
[1727831705991,12.99523262,145.66,145.61,9.61502]
[1727831706295,12.2366,145.66,145.62,2.7471]
[1727831706495,3.4300322,145.65,145.61,9.61502]
[1727831706805,9.49,145.63,145.61,0.12502]
[1727831707102,9.49,145.62,145.61,0.12502]